fUST/lending_fUST_20250727
["ID","MTS","AMOUNT","RATE_DAILY","PERIOD"]
[375278445,1753614643537,-2989.25,0.00019178,2]
[375278447,1753614643547,-460.0,0.00019178,2]
[375278449,1753614643558,-754.46,0.00019178,2]
[375278451,1753614643567,-460.0,0.00019178,2]
[375278453,1753614643578,-460.0,0.00019178,2]
[375278455,1753614643588,-460.0,0.00019178,2]
[375278457,1753614643598,-460.0,0.00019178,2]
[375278459,1753614643609,-460.0,0.00019178,2]
[375278461,1753614643619,-847.47,0.00019178,2]
[375278463,1753614643630,-460.0,0.00019178,2]
[375278465,1753614643640,-460.0,0.00019178,2]
[375278467,1753614643651,-461.6228515,0.00019178,2]
[375278469,1753614643661,-460.0,0.00019178,2]
[375278471,1753614643671,-1165.45,0.00019178,2]
[375278473,1753614643681,-460.0,0.00019178,2]
[375278475,1753614643691,-462.63106615,0.00019178,2]
[375278477,1753614643701,-460.0,0.00019178,2]
[375278479,1753614643711,-460.0,0.00019178,2]
[375278481,1753614643721,-370.75921051,0.00019178,2]
[375278506,1753614644214,-89.24078949,0.00019178,2]
[375278507,1753614644224,-460.0,0.00019178,2]
[375278508,1753614644234,-460.0,0.00019178,2]
[375278509,1753614644244,-460.0,0.00019178,2]
[375278510,1753614644254,-462.02642198,0.00019178,2]
[375278511,1753614644264,-460.0,0.00019178,2]
[375278512,1753614644274,-460.0,0.00019178,2]
[375278513,1753614644285,-460.0,0.00019178,2]
[375278514,1753614644295,-460.0,0.00019178,2]
[375278515,1753614644305,-460.0,0.00019178,2]
[375278516,1753614644315,-460.0,0.00019178,2]
[375278517,1753614644325,-460.0,0.00019178,2]
[375278518,1753614644337,-460.0,0.00019178,2]
[375278519,1753614644347,-460.0,0.00019178,2]
[375278520,1753614644356,-460.0,0.00019178,2]
[375278521,1753614644366,-460.0,0.00019178,2]
[375278522,1753614644376,-460.0,0.00019178,2]
[375278523,1753614644386,-460.0,0.00019178,2]
[375278524,1753614644396,-460.0,0.00019178,2]
[375278525,1753614644405,-460.0,0.00019178,2]
[375278526,1753614644415,-848.97,0.00019178,2]
[375278527,1753614644425,-460.0,0.00019178,2]
[375278528,1753614644435,-460.0,0.00019178,2]
[375278529,1753614644445,-460.0,0.00019178,2]
[375278530,1753614644455,-460.0,0.00019178,2]
[375278531,1753614644465,-460.0,0.00019178,2]
[375278532,1753614644475,-460.0,0.00019178,2]
[375278533,1753614644489,-460.0,0.00019178,2]
[375278534,1753614644501,-460.0,0.00019178,2]
[375278535,1753614644512,-460.0,0.00019178,2]
[375278536,1753614644524,-1505.13,0.00019178,2]
[375278537,1753614644536,-460.0,0.00019178,2]
[375278538,1753614644550,-460.0,0.00019178,2]
[375278539,1753614644560,-460.0,0.00019178,2]
[375278540,1753614644570,-460.0,0.00019178,2]
[375278541,1753614644580,-462.10861502,0.00019178,2]
[375278542,1753614644590,-460.0,0.00019178,2]
[375278543,1753614644599,-460.0,0.00019178,2]
[375278544,1753614644609,-151.0,0.00019178,2]
[375278545,1753614644618,-4018.1565047,0.00019178,2]
[375278546,1753614644628,-5000.0,0.00019178,2]
[375278547,1753614644637,-2686.04674273,0.00019178,2]
[375278548,1753614644647,-256.96405189,0.00019233,2]
[375278549,1753614644656,-645.50858471,0.00019282,2]
[375278550,1753614644666,-70273.19023519,0.00019329,2]
[375278553,1753614707924,1564.7652653,0.00018126,2]
[375278554,1753614740746,390.328217,0.00013699,2]
[375278556,1753614860762,762.01030454,0.000189,2]
[375278557,1753614917887,150.0,0.00018611,2]
[375278558,1753614951916,3281.64413617,0.000189,2]
[375278559,1753614966509,5000.0,0.0001895,2]
[375278561,1753614982225,5000.0,0.0001895,2]
[375278562,1753614994998,150.0,0.00018501,2]
[375278563,1753614997640,740.29861618,0.0001895,2]
[375278564,1753614997666,4259.70138382,0.0001895,2]
[375278565,1753614998664,210.8118669,0.00018143,2]
[375278566,1753614998780,4118.83181919,0.00018878,2]
[375278568,1753615013521,5000.0,0.0001895,2]
[375278569,1753615029765,5000.0,0.0001895,2]
[375278570,1753615045644,1410.65493009,0.0001895,2]
[375278571,1753615045667,3589.34506991,0.0001895,2]
[375278572,1753615061696,5000.0,0.0001895,2]
[375278573,1753615068420,150.0,0.00018543,2]
[375278574,1753615077235,5000.0,0.0001895,2]
[375278575,1753615085244,4649.94016142,0.0001895,2]
[375278576,1753615093827,1610.71476867,0.0001895,2]
[375278577,1753615093849,3389.28523133,0.0001895,2]
[375278578,1753615102293,3150.90067717,0.0001895,2]
[375278579,1753615111227,3172.12184412,0.000189,2]
[375278580,1753615112383,5000.0,0.0001895,2]
[375278581,1753615127831,5000.0,0.0001895,2]
[375278582,1753615143778,287.69224738,0.0001895,2]
[375278583,1753615143803,4712.30775262,0.0001895,2]
[375278584,1753615149196,150.0,0.00018615,2]
[375278585,1753615159789,5000.0,0.0001895,2]
[375278586,1753615163292,508.00686969,0.000189,2]
[375278587,1753615174996,-1200.0,0.00018961,2]
[375278588,1753615175019,-300.0,0.00018961,2]
[375278589,1753615175042,-448.21,0.00018962,3]
[375278590,1753615175063,-373.51,0.00018962,3]
[375278591,1753615175084,-186.76,0.00018962,3]
[375278592,1753615175105,-463.98,0.00018962,3]
[375278593,1753615175126,-231.99,0.00018962,3]
[375278594,1753615175147,-696.01,0.00018962,3]
[375278595,1753615175169,-290.132688,0.00018971,2]
[375278596,1753615175190,-160.0,0.00018972,2]
[375278597,1753615175212,-20430.407312,0.00018972,2]
[375278598,1753615175628,5000.0,0.0001895,2]
[375278599,1753615191164,4629.68537769,0.0001895,2]
[375278600,1753615191186,370.31462231,0.0001895,2]
[375278601,1753615207127,5000.0,0.0001895,2]
[375278602,1753615223053,5000.0,0.0001895,2]
[375278603,1753615236329,150.0,0.00018462,2]
[375278604,1753615238597,4389.93425127,0.0001895,2]
[375278605,1753615258890,3079.66572148,0.000189,2]
[375278606,1753615322059,396.9603603,0.00017971,2]
[375278607,1753615339343,1613.12504464,0.00018878,2]
[375278608,1753615339368,1681.94041072,0.00018878,2]
[375278609,1753615344199,3252.15938715,0.00017867,2]
[375278610,1753615344501,3252.15938715,0.00018353,2]
[375278611,1753615344823,3252.15938715,0.00018491,2]
[375278612,1753615345138,3252.15938715,0.00018833,2]
[375278613,1753615350862,5309.42204068,0.00017969,2]
[375278614,1753615350887,19590.57795932,0.00017969,2]
[375278615,1753615358717,175.76120748,0.0001895,2]
[375278616,1753615381877,233.6608332,0.00018392,2]
[375278617,1753615381900,152.48507039,0.00018392,2]
[375278618,1753615381927,5082.29390113,0.00018878,2]
[375278619,1753615383092,193.0729518,0.00018402,2]
[375278620,1753615412934,2977.01019745,0.000189,2]
[375278621,1753615442274,358.788266,0.00017973,2]
[375278622,1753615465337,338.67124646,0.000189,2]
[375278623,1753615475846,207.864978,0.00017969,2]
[375278624,1753615525314,308.7507566,0.00017973,2]
[375278626,1753615540913,150.0,0.00018558,2]
[375278628,1753615557861,2947.09614831,0.000189,2]
[375278629,1753615623337,150.0,0.00018556,2]
[375278640,1753615645115,-1200.0,0.0001896,2]
[375278641,1753615645140,-300.0,0.0001896,2]
[375278642,1753615645162,-741.83,0.00018962,3]
[375278643,1753615645186,-370.91,0.00018962,3]
[375278644,1753615645208,-185.46,0.00018962,3]
[375278645,1753615645229,-556.38,0.00018962,3]
[375278646,1753615645249,-500.0,0.00018971,2]
[375278647,1753615645269,-896.49233869,0.00018971,2]
[375278650,1753615666628,7133.96648386,0.00018118,2]
[375278651,1753615666652,2866.03351614,0.00018118,2]
[375278652,1753615671713,7620.73290163,0.00018,2]
[375278653,1753615672199,3388.19593408,0.00018896,2]
[375278654,1753615685209,154.45836144,0.00018403,2]
[375278655,1753615706023,1832.61912547,0.000176,2]
[375278662,1753615742573,337.793296,0.00018871,2]
[375278665,1753615748394,178.44613355,0.00018871,2]
[375278666,1753615763385,3621.72073169,0.00018072,2]
[375278667,1753615763407,251.41599501,0.00018072,2]
[375278668,1753615766513,1175.76829149,0.000189,2]
[375278686,1753615832426,-461.4225,0.00018962,3]
[375278687,1753615832438,-321.3075,0.00018962,3]
[375278688,1753615832448,-300.0,0.0001897,2]
[375278689,1753615832457,-181.06229266,0.00018971,2]
[375278690,1753615832469,-453.56568075,0.00018971,2]
[375278692,1753615832478,-610.45337963,0.00018971,2]
[375278694,1753615832487,-500.0,0.00018971,2]
[375278696,1753615832495,-500.0,0.00018971,2]
[375278697,1753615832509,-500.0,0.00018971,2]
[375278699,1753615832518,-500.0,0.00018971,2]
[375278702,1753615832528,-500.0,0.00018971,2]
[375278703,1753615832537,-500.0,0.00018971,2]
[375278704,1753615832546,-550.0,0.00018971,2]
[375278706,1753615832557,-500.0,0.00018971,2]
[375278707,1753615832566,-500.0,0.00018971,2]
[375278708,1753615832575,-502.73276651,0.00018971,2]
[375278710,1753615832586,-500.0,0.00018971,2]
[375278712,1753615832595,-440.16891402,0.00018971,2]
[375278714,1753615832604,-500.0,0.00018971,2]
[375278715,1753615832614,-222.29317711,0.00018971,2]
[375278716,1753615832623,-328.01211197,0.00018971,2]
[375278717,1753615832633,-500.0,0.00018971,2]
[375278718,1753615832642,-500.0,0.00018971,2]
[375278719,1753615832651,-500.0,0.00018971,2]
[375278720,1753615832660,-500.0,0.00018971,2]
[375278721,1753615832670,-500.0,0.00018971,2]
[375278722,1753615832680,-600.0,0.00018971,2]
[375278723,1753615832690,-500.0,0.00018971,2]
[375278724,1753615832700,-500.0,0.00018971,2]
[375278725,1753615832710,-500.0,0.00018971,2]
[375278726,1753615832719,-500.0,0.00018971,2]
[375278727,1753615832729,-500.0,0.00018971,2]
[375278728,1753615832737,-500.0,0.00018971,2]
[375278729,1753615832747,-500.0,0.00018971,2]
[375278730,1753615832757,-211.13999792,0.00018971,2]
[375278731,1753615832767,-500.0,0.00018971,2]
[375278732,1753615832777,-500.0,0.00018971,2]
[375278733,1753615832787,-500.0,0.00018971,2]
[375278734,1753615832797,-500.0,0.00018971,2]
[375278735,1753615832807,-366.68375077,0.00018971,2]
[375278736,1753615832816,-495.78913421,0.00018971,2]
[375278737,1753615832825,-181.62533038,0.00018971,2]
[375278738,1753615832835,-500.0,0.00018971,2]
[375278739,1753615832844,-500.0,0.00018971,2]
[375278740,1753615832854,-451.21950561,0.00018971,2]
[375278741,1753615832865,-251471.52081252,0.00018972,2]
[375278742,1753615832875,-2824.97334592,0.00019041,2]
[375278743,1753615832887,-742.44589872,0.00019041,2]
[375278744,1753615832897,-1322.05969488,0.00019078,2]
[375278745,1753615832909,-40.13402144,0.00019078,2]
[375278746,1753615832918,-3567.41924462,0.00019119,2]
[375278747,1753615832928,-278.0,0.00019141,2]
[375278748,1753615832939,-500.0,0.00019166,2]
[375278749,1753615832949,-500.0,0.00019166,2]
[375278750,1753615832959,-500.0,0.00019166,2]
[375278751,1753615832968,-500.0,0.00019166,2]
[375278752,1753615832978,-500.0,0.00019166,2]
[375278753,1753615832987,-500.0,0.00019166,2]
[375278754,1753615832997,-500.0,0.00019166,2]
[375278755,1753615833006,-500.0,0.00019166,2]
[375278756,1753615833015,-500.0,0.00019166,2]
[375278757,1753615833025,-500.0,0.00019166,2]
[375278758,1753615833035,-500.0,0.00019166,2]
[375278759,1753615833045,-500.0,0.00019166,2]
[375278760,1753615833056,-635.03781758,0.00019166,2]
[375278761,1753615833066,-500.0,0.00019167,2]
[375278762,1753615833078,-500.33723967,0.00019173,2]
[375278763,1753615833087,-500.0,0.00019173,2]
[375278764,1753615833098,-500.0,0.00019173,2]
[375278765,1753615833109,-504.13604337,0.00019173,2]
[375278766,1753615833119,-500.6679518,0.00019173,2]
[375278767,1753615833129,-645.24952784,0.00019173,2]
[375278768,1753615833139,-443.16655307,0.00019173,2]
[375278769,1753615833150,-500.0,0.00019173,2]
[375278770,1753615833159,-500.0,0.00019173,2]
[375278771,1753615833169,-500.0,0.00019173,2]
[375278772,1753615833179,-500.0,0.00019173,2]
[375278773,1753615833189,-500.0,0.00019173,2]
[375278774,1753615833199,-500.0,0.00019173,2]
[375278775,1753615833209,-500.0,0.00019173,2]
[375278776,1753615833219,-500.0,0.00019173,2]
[375278777,1753615833230,-276.00341761,0.00019173,2]
[375278778,1753615833240,-500.0,0.00019173,2]
[375278779,1753615833249,-500.0,0.00019173,2]
[375278780,1753615833259,-500.0,0.00019173,2]
[375278781,1753615833268,-500.0,0.00019173,2]
[375278782,1753615833278,-500.0,0.00019173,2]
[375278783,1753615833288,-500.0,0.00019173,2]
[375278784,1753615833299,-500.0,0.00019173,2]
[375278785,1753615833309,-500.0,0.00019173,2]
[375278786,1753615833319,-500.0,0.00019173,2]
[375278787,1753615833329,-500.0,0.00019173,2]
[375278788,1753615833339,-500.0,0.00019173,2]
[375278789,1753615833349,-501.1427899,0.00019173,2]
[375278790,1753615833359,-500.0,0.00019173,2]
[375278791,1753615833369,-500.16929948,0.00019173,2]
[375278792,1753615833378,-502.66005095,0.00019173,2]
[375278793,1753615833388,-575.29934562,0.00019173,2]
[375278794,1753615833399,-500.0,0.00019173,2]
[375278795,1753615833409,-500.0,0.00019173,2]
[375278796,1753615833419,-500.0,0.00019173,2]
[375278797,1753615833429,-501.17337381,0.00019173,2]
[375278798,1753615833438,-415.90332342,0.00019173,2]
[375278799,1753615833448,-500.0,0.00019173,2]
[375278800,1753615833458,-500.57595872,0.00019173,2]
[375278801,1753615833467,-151.0506457,0.00019173,2]
[375278802,1753615833477,-500.0,0.00019173,2]
[375278803,1753615833486,-501.09708674,0.00019173,2]
[375278804,1753615833496,-500.0,0.00019173,2]
[375278805,1753615833510,-500.0,0.00019173,2]
[375278806,1753615833520,-500.0,0.00019173,2]
[375278807,1753615833530,-157.60390773,0.00019173,2]
[375278808,1753615833540,-500.0,0.00019173,2]
[375278809,1753615833551,-500.0,0.00019173,2]
[375278810,1753615833561,-532.27050215,0.00019173,2]
[375278811,1753615833571,-500.0,0.00019173,2]
[375278812,1753615833581,-204.57368172,0.00019173,2]
[375278813,1753615833590,-515.04012292,0.00019173,2]
[375278814,1753615833601,-500.0,0.00019173,2]
[375278815,1753615833611,-500.0,0.00019173,2]
[375278816,1753615833621,-447.9935946,0.00019173,2]
[375278817,1753615833632,-500.0,0.00019173,2]
[375278818,1753615833641,-155.0,0.00019177,2]
[375278819,1753615833651,-500.0,0.00019177,2]
[375278820,1753615833661,-500.0,0.00019177,2]
[375278821,1753615833671,-500.0,0.00019177,2]
[375278822,1753615833680,-26.33990264,0.00019177,2]
[375278823,1753615833693,-253.29003,0.00019177,2]
[375278824,1753615833710,-19.04479294,0.00019177,2]
[375278825,1753615833720,-500.0,0.00019177,2]
[375278826,1753615833730,-500.0,0.00019177,2]
[375278827,1753615833740,-500.0,0.00019177,2]
[375278828,1753615833751,-500.0,0.00019177,2]
[375278829,1753615833761,-500.0,0.00019177,2]
[375278830,1753615833771,-256.51328214,0.00019177,2]
[375278831,1753615833782,-500.0,0.00019177,2]
[375278832,1753615833792,-500.0,0.00019177,2]
[375278833,1753615833803,-500.0,0.00019177,2]
[375278834,1753615833814,-371.44292492,0.00019177,2]
[375278835,1753615833826,-128.55707508,0.00019177,2]
[375278836,1753615833836,-326.32675659,0.00019177,2]
[375278837,1753615833848,-173.67324341,0.00019177,2]
[375278838,1753615833858,-500.0,0.00019177,2]
[375278839,1753615833868,-500.0,0.00019177,2]
[375278840,1753615833877,-500.0,0.00019177,2]
[375278841,1753615833887,-500.0,0.00019177,2]
[375278842,1753615833897,-500.0,0.00019177,2]
[375278843,1753615833907,-465.92944353,0.00019177,2]
[375278857,1753615838230,-34.07055647,0.00019177,2]
[375278858,1753615838240,-500.0,0.00019177,2]
[375278859,1753615838250,-86.84778544,0.00019177,2]
[375278860,1753615838261,-413.15221456,0.00019177,2]
[375278861,1753615838271,-500.0,0.00019177,2]
[375278862,1753615838281,-309.24413092,0.00019177,2]
[375278863,1753615838293,-190.75586908,0.00019177,2]
[375278864,1753615838302,-500.0,0.00019177,2]
[375278865,1753615838311,-500.0,0.00019177,2]
[375278866,1753615838321,-500.0,0.00019177,2]
[375278867,1753615838330,-413.5614051,0.00019177,2]
[375278868,1753615838342,-86.4385949,0.00019177,2]
[375278869,1753615838351,-350.0,0.00019177,2]
[375278870,1753615838360,-500.0,0.00019177,2]
[375278871,1753615838371,-500.0,0.00019177,2]
[375278872,1753615838382,-500.0,0.00019177,2]
[375278873,1753615838391,-236.0047074,0.00019177,2]
[375278874,1753615838401,-460.0,0.00019178,2]
[375278875,1753615838411,-460.0,0.00019178,2]
[375278876,1753615838420,-460.0,0.00019178,2]
[375278877,1753615838430,-460.0,0.00019178,2]
[375278878,1753615838439,-462.82360949,0.00019178,2]
[375278879,1753615838448,-461.57072458,0.00019178,2]
[375278880,1753615838458,-462.22645176,0.00019178,2]
[375278881,1753615838566,-460.0,0.00019178,2]
[375278882,1753615838577,-463.48101341,0.00019178,2]
[375278883,1753615838590,-460.0,0.00019178,2]
[375278884,1753615838599,-460.0,0.00019178,2]
[375278885,1753615838609,-460.0,0.00019178,2]
[375278886,1753615838619,-460.0,0.00019178,2]
[375278887,1753615838629,-451.0850662,0.00019178,2]
[375278888,1753615838638,-460.0,0.00019178,2]
[375278889,1753615838648,-460.0,0.00019178,2]
[375278890,1753615838658,-460.0,0.00019178,2]
[375278891,1753615838668,-1311.09,0.00019178,2]
[375278892,1753615838677,-461.46562198,0.00019178,2]
[375278893,1753615838686,-463.29544087,0.00019178,2]
[375278894,1753615838695,-463.95291083,0.00019178,2]
[375278895,1753615838704,-460.0,0.00019178,2]
[375278896,1753615838713,-460.0,0.00019178,2]
[375278897,1753615838723,-460.0,0.00019178,2]
[375278898,1753615838732,-460.0,0.00019178,2]
[375278899,1753615838742,-460.0,0.00019178,2]
[375278900,1753615838752,-460.0,0.00019178,2]
[375278901,1753615838761,-460.0,0.00019178,2]
[375278902,1753615838771,-460.0,0.00019178,2]
[375278903,1753615838781,-460.0,0.00019178,2]
[375278904,1753615838790,-461.48892845,0.00019178,2]
[375278905,1753615838800,-460.0,0.00019178,2]
[375278906,1753615838810,-460.0,0.00019178,2]
[375278907,1753615838819,-460.0,0.00019178,2]
[375278908,1753615838830,-460.0,0.00019178,2]
[375278909,1753615838840,-460.0,0.00019178,2]
[375278910,1753615838850,-460.0,0.00019178,2]
[375278911,1753615838860,-460.0,0.00019178,2]
[375278912,1753615838869,-282.5543662,0.00019178,2]
[375278913,1753615838879,-460.0,0.00019178,2]
[375278914,1753615838889,-460.0,0.00019178,2]
[375278915,1753615838899,-460.0,0.00019178,2]
[375278916,1753615838909,-460.0,0.00019178,2]
[375278917,1753615838918,-209.01490085,0.00019178,2]
[375278918,1753615838928,-460.0,0.00019178,2]
[375278919,1753615838938,-460.0,0.00019178,2]
[375278920,1753615838948,-460.0,0.00019178,2]
[375278921,1753615838957,-460.0,0.00019178,2]
[375278922,1753615838968,-413.65264226,0.00019178,2]
[375278923,1753615838978,-460.0,0.00019178,2]
[375278924,1753615838987,-460.0,0.00019178,2]
[375278925,1753615838996,-460.0,0.00019178,2]
[375278926,1753615839006,-460.0,0.00019178,2]
[375278927,1753615839016,-460.0,0.00019178,2]
[375278928,1753615839026,-460.0,0.00019178,2]
[375278929,1753615839035,-460.0,0.00019178,2]
[375278930,1753615839044,-460.0,0.00019178,2]
[375278931,1753615839053,-460.0,0.00019178,2]
[375278932,1753615839062,-373.36089573,0.00019178,2]
[375278933,1753615839071,-460.0,0.00019178,2]
[375278934,1753615839081,-460.0,0.00019178,2]
[375278935,1753615839090,-460.0,0.00019178,2]
[375278936,1753615839099,-1237.56,0.00019178,2]
[375278937,1753615839108,-238.9152078,0.00019178,2]
[375278938,1753615839118,-460.0,0.00019178,2]
[375278939,1753615839127,-461.17921993,0.00019178,2]
[375278940,1753615839136,-460.0,0.00019178,2]
[375278941,1753615839145,-460.0,0.00019178,2]
[375278942,1753615839155,-460.0,0.00019178,2]
[375278943,1753615839165,-460.0,0.00019178,2]
[375278944,1753615839175,-460.0,0.00019178,2]
[375278945,1753615839185,-460.0,0.00019178,2]
[375278946,1753615839194,-460.0,0.00019178,2]
[375278947,1753615839203,-420.5486287,0.00019178,2]
[375278948,1753615839212,-460.0,0.00019178,2]
[375278949,1753615839221,-460.0,0.00019178,2]
[375278950,1753615839231,-460.0,0.00019178,2]
[375278951,1753615839240,-460.0,0.00019178,2]
[375278952,1753615839250,-155.55858491,0.00019178,2]
[375278953,1753615839259,-460.0,0.00019178,2]
[375278954,1753615839269,-460.0,0.00019178,2]
[375278955,1753615839280,-460.0,0.00019178,2]
[375278956,1753615839289,-460.0,0.00019178,2]
[375278957,1753615839298,-460.0,0.00019178,2]
[375278958,1753615839308,-223.61301261,0.00019178,2]
[375278959,1753615839318,-460.0,0.00019178,2]
[375278960,1753615839328,-460.0,0.00019178,2]
[375278961,1753615839338,-460.0,0.00019178,2]
[375278962,1753615839348,-460.0,0.00019178,2]
[375278963,1753615839358,-1000.0,0.00019178,2]
[375278964,1753615839368,-460.0,0.00019178,2]
[375278965,1753615839378,-460.0,0.00019178,2]
[375278966,1753615839387,-460.0,0.00019178,2]
[375278967,1753615839397,-460.0,0.00019178,2]
[375278968,1753615839406,-460.0,0.00019178,2]
[375278969,1753615839416,-462.78657372,0.00019178,2]
[375278970,1753615839425,-460.0,0.00019178,2]
[375278971,1753615839434,-461.4964493,0.00019178,2]
[375278972,1753615839444,-460.0,0.00019178,2]
[375278973,1753615839453,-460.0,0.00019178,2]
[375278974,1753615839462,-460.0,0.00019178,2]
[375278975,1753615839472,-462.84889625,0.00019178,2]
[375278976,1753615839481,-460.0,0.00019178,2]
[375278977,1753615839491,-460.0,0.00019178,2]
[375278978,1753615839499,-460.0,0.00019178,2]
[375278979,1753615839512,-460.0,0.00019178,2]
[375278980,1753615839522,-460.0,0.00019178,2]
[375278981,1753615839531,-460.0,0.00019178,2]
[375278982,1753615839540,-460.0,0.00019178,2]
[375278983,1753615839550,-460.0,0.00019178,2]
[375278984,1753615839559,-460.0,0.00019178,2]
[375278985,1753615839568,-460.0,0.00019178,2]
[375278986,1753615839579,-460.0,0.00019178,2]
[375278987,1753615839588,-460.0,0.00019178,2]
[375278988,1753615839598,-460.0,0.00019178,2]
[375278989,1753615839607,-460.0,0.00019178,2]
[375278990,1753615839616,-460.0,0.00019178,2]
[375278991,1753615839625,-460.0,0.00019178,2]
[375278992,1753615839635,-460.0,0.00019178,2]
[375278993,1753615839644,-460.0,0.00019178,2]
[375278994,1753615839653,-460.0,0.00019178,2]
[375278995,1753615839663,-460.0,0.00019178,2]
[375278996,1753615839672,-460.0,0.00019178,2]
[375278997,1753615839682,-460.0,0.00019178,2]
[375278998,1753615839691,-460.0,0.00019178,2]
[375278999,1753615839701,-460.0,0.00019178,2]
[375279000,1753615839711,-460.0,0.00019178,2]
[375279002,1753615839720,-460.0,0.00019178,2]
[375279003,1753615839730,-460.0,0.00019178,2]
[375279004,1753615839739,-460.0,0.00019178,2]
[375279005,1753615839749,-460.0,0.00019178,2]
[375279006,1753615839759,-460.0,0.00019178,2]
[375279007,1753615839769,-460.0,0.00019178,2]
[375279008,1753615839779,-500.0,0.00019178,2]
[375279009,1753615839789,-500.0,0.00019178,2]
[375279010,1753615839799,-460.98823872,0.00019178,2]
[375279011,1753615839808,-500.0,0.00019178,2]
[375279012,1753615839818,-500.0,0.00019178,2]
[375279013,1753615839828,-500.0,0.00019178,2]
[375279014,1753615839837,-500.0,0.00019178,2]
[375279016,1753615839848,-460.0,0.00019178,2]
[375279017,1753615839857,-500.0,0.00019178,2]
[375279018,1753615839866,-500.0,0.00019178,2]
[375279019,1753615839877,-460.0,0.00019178,2]
[375279020,1753615839886,-500.0,0.00019178,2]
[375279021,1753615839896,-500.0,0.00019178,2]
[375279023,1753615839906,-500.0,0.00019178,2]
[375279024,1753615839915,-500.0,0.00019178,2]
[375279025,1753615839925,-500.0,0.00019178,2]
[375279026,1753615839935,-500.0,0.00019178,2]
[375279027,1753615839944,-500.0,0.00019178,2]
[375279028,1753615839954,-1780.04,0.00019178,2]
[375279029,1753615839963,-500.0,0.00019178,2]
[375279030,1753615839973,-500.0,0.00019178,2]
[375279031,1753615839983,-500.0,0.00019178,2]
[375279032,1753615839992,-500.0,0.00019178,2]
[375279033,1753615840001,-500.0,0.00019178,2]
[375279034,1753615840010,-460.0,0.00019178,2]
[375279035,1753615840019,-500.0,0.00019178,2]
[375279036,1753615840029,-460.0,0.00019178,2]
[375279037,1753615840039,-500.0,0.00019178,2]
[375279039,1753615840049,-422.52,0.00019178,2]
[375279040,1753615840059,-460.0,0.00019178,2]
[375279041,1753615840069,-460.0,0.00019178,2]
[375279042,1753615840078,-460.0,0.00019178,2]
[375279043,1753615840088,-460.0,0.00019178,2]
[375279044,1753615840098,-460.0,0.00019178,2]
[375279045,1753615840108,-460.0,0.00019178,2]
[375279046,1753615840118,-460.0,0.00019178,2]
[375279047,1753615840127,-460.0,0.00019178,2]
[375279048,1753615840137,-460.0,0.00019178,2]
[375279049,1753615840146,-460.0,0.00019178,2]
[375279050,1753615840155,-460.0,0.00019178,2]
[375279051,1753615840165,-460.0,0.00019178,2]
[375279052,1753615840174,-460.0,0.00019178,2]
[375279053,1753615840184,-460.0,0.00019178,2]
[375279054,1753615840194,-460.0,0.00019178,2]
[375279055,1753615840203,-460.0,0.00019178,2]
[375279056,1753615840212,-460.0,0.00019178,2]
[375279057,1753615840222,-460.0,0.00019178,2]